bitfinex/quotes_SOLUSD_20230104
["timestamp","ask_amount","ask_price","bid_price","bid_amount"]
[1672860425204,30.0,13.214,13.204,108.7726]
[1672860427943,46.90852897,13.214,13.204,108.7726]
[1672860428155,23.46,13.21,13.203,0.00716545]
[1672860428687,134.29852897,13.21,13.203,0.00716545]
[1672860428905,56.83,13.209,13.203,0.00716545]
[1672860429102,30.0,13.208,13.203,0.00716545]
[1672860429314,56.83,13.207,13.203,0.00716545]
[1672860429519,30.0,13.208,13.203,0.00716545]
[1672860431516,46.90852897,13.208,13.203,0.00716545]
[1672860431945,56.83,13.207,13.203,0.00716545]
[1672860432160,30.0,13.206,13.203,0.00716545]
[1672860432367,56.84,13.205,13.191,56.9]
[1672860432792,46.90852897,13.206,13.191,56.9]
[1672860433197,30.0,13.206,13.191,56.9]
[1672860434682,86.84,13.206,13.191,56.9]
[1672860435101,104.38991049,13.206,13.191,56.9]
[1672860435323,47.54991049,13.206,13.191,56.9]
[1672860436048,30.0,13.199,13.189,37.91]
[1672860436252,86.87,13.199,13.182,165.5788]
[1672860436463,104.41991049,13.199,13.182,165.5788]
[1672860436668,56.85,13.204,13.185,21.7811836]
[1672860436884,30.0,13.206,13.188,56.92]
[1672860437090,30.0,13.206,13.19,30.0]
[1672860437311,30.0,13.206,13.191,56.9]
[1672860437510,30.0,13.206,13.192,30.0]
[1672860437742,30.0,13.206,13.193,56.89]
[1672860438259,30.0,13.206,13.191,56.9]
[1672860438575,30.0,13.206,13.19,56.91]
[1672860438790,56.84,13.205,13.19,56.91]
[1672860439105,47.54991049,13.206,13.191,30.0]
[1672860439620,17.54991049,13.206,13.192,56.9]
[1672860440163,30.0,13.205,13.191,56.9]
[1672860440350,30.0,13.205,13.19,56.91]
[1672860440558,74.39991049,13.204,13.189,118.6938]
[1672860440994,30.0,13.202,13.189,118.6938]
[1672860441299,23.35,13.2,13.189,118.6938]
[1672860441513,30.0,13.198,13.189,118.6938]
[1672860441727,56.88,13.197,13.187,68.5290266]
[1672860441930,30.0,13.196,13.187,68.5290266]
[1672860442148,56.89,13.195,13.187,68.5290266]
[1672860442675,56.89,13.195,13.187,98.8838286]
[1672860443198,30.0,13.194,13.187,98.8838286]
[1672860443936,30.0,13.196,13.187,98.8838286]
[1672860444550,47.54991049,13.196,13.187,98.8838286]
[1672860444771,56.89,13.195,13.187,98.8838286]
[1672860444984,30.0,13.194,13.187,98.8838286]
[1672860445404,56.89,13.195,13.187,98.8838286]
[1672860445722,56.88,13.197,13.187,98.3838286]
[1672860446033,30.0,13.196,13.187,98.3838286]
[1672860446251,117.17,13.2,13.187,98.3838286]
[1672860446252,23.33,13.2,13.187,98.3838286]
[1672860446443,23.33,13.2,13.188,175.7948]
[1672860447089,23.33,13.2,13.189,114.0593]
[1672860447298,23.33,13.2,13.189,0.3791]
[1672860447299,18.75984984,13.199,13.189,0.3791]
[1672860447609,23.33,13.2,13.189,0.3791]
[1672860448222,56.83,13.208,13.191,30.0]
[1672860448450,23.48,13.21,13.192,56.9]
[1672860448667,23.48,13.21,13.192,165.4677]
[1672860448976,30.0,13.208,13.192,165.4677]
[1672860449191,56.83,13.207,13.192,108.5677]
[1672860449611,18.75984984,13.206,13.192,108.5677]
[1672860449927,30.0,13.204,13.192,108.5677]
[1672860450333,56.84,13.205,13.192,108.5677]
[1672860450542,18.75984984,13.203,13.192,108.5677]
[1672860450750,30.0,13.202,13.192,108.5677]
[1672860451178,18.75984984,13.203,13.192,108.5677]
[1672860451504,18.75984984,13.206,13.192,108.5677]
[1672860451697,56.84,13.205,13.192,108.5677]
[1672860452019,48.75984984,13.204,13.192,108.5677]
[1672860452222,23.46,13.2,13.192,108.5677]
[1672860452656,18.75984984,13.199,13.189,0.3791]
[1672860452981,30.0,13.198,13.189,0.3791]
[1672860453291,18.75984984,13.197,13.189,0.3791]
[1672860453501,75.63984984,13.197,13.189,0.3791]
[1672860454118,18.75984984,13.196,13.189,0.3791]
[1672860454749,56.88,13.197,13.189,0.3791]
[1672860454970,18.75984984,13.197,13.189,0.3791]
[1672860455291,56.87,13.199,13.189,0.3791]
[1672860455500,23.46,13.2,13.189,0.3791]
[1672860455714,18.75984984,13.198,13.189,0.3791]
[1672860455907,30.0,13.197,13.189,0.3791]
[1672860456236,48.75984984,13.197,13.189,0.3791]
[1672860456550,56.88,13.196,13.189,0.3791]
[1672860456761,48.75984984,13.197,13.189,0.3791]
[1672860456975,75.63984984,13.196,13.189,0.3791]
[1672860457586,30.0,13.195,13.189,0.3791]
[1672860458317,75.63984984,13.196,13.189,0.3791]
[1672860458645,18.75984984,13.196,13.189,0.3791]
[1672860458969,56.87,13.199,13.189,0.3791]
[1672860459177,75.62984984,13.199,13.189,0.3791]
[1672860459375,30.0,13.197,13.189,0.3791]
[1672860459697,56.88,13.196,13.189,0.3791]
[1672860459911,38.75984984,13.198,13.189,0.3791]
[1672860460101,56.88,13.197,13.189,0.3791]
[1672860461293,20.0,13.198,13.189,0.3791]
[1672860462202,56.87,13.199,13.189,0.3791]
[1672860462419,23.65,13.2,13.189,0.3791]
[1672860465070,56.86,13.202,13.189,0.3791]
[1672860465277,56.86,13.202,13.189,114.728]
[1672860465593,56.84,13.205,13.19,56.91]
[1672860465912,30.0,13.206,13.191,30.0]
[1672860466223,56.84,13.205,13.191,30.0]
[1672860467058,56.84,13.205,13.19,56.91]
[1672860467475,56.84,13.205,13.191,30.0]
[1672860468328,56.84,13.205,13.19,56.91]
[1672860469465,56.84,13.205,13.191,30.0]
[1672860469676,56.83,13.207,13.191,30.0]
[1672860470105,56.83,13.207,13.19,56.91]
[1672860470106,30.0,13.206,13.19,56.91]
[1672860470323,56.84,13.205,13.19,56.91]
[1672860470527,30.0,13.204,13.19,56.91]
[1672860471367,56.84,13.205,13.191,30.0]
[1672860471774,56.83,13.207,13.192,56.9]
[1672860472544,18.75984984,13.206,13.192,56.9]
[1672860472931,18.75984984,13.206,13.193,30.0]
[1672860473137,56.83,13.207,13.193,30.0]
[1672860473579,18.75984984,13.206,13.193,30.0]
[1672860473990,56.83,13.209,13.193,30.0]
[1672860474206,75.58984984,13.209,13.193,30.0]
[1672860474414,56.83,13.209,13.193,30.0]
[1672860475474,20.0,13.208,13.193,30.0]
[1672860475682,56.83,13.207,13.193,30.0]
[1672860475870,30.0,13.217,13.193,30.0]
[1672860475871,56.83,13.209,13.194,76.89]
[1672860476087,56.8,13.214,13.195,109.7862]
[1672860476298,56.8,13.214,13.197,30.0]
[1672860476612,56.8,13.214,13.196,56.88]
[1672860476613,30.0,13.212,13.196,56.88]
[1672860476828,23.39,13.21,13.195,109.7862]
[1672860477037,30.0,13.208,13.195,109.7862]
[1672860477250,56.83,13.207,13.195,109.7862]
[1672860477463,75.58984984,13.207,13.195,109.7862]
[1672860477784,18.75984984,13.206,13.195,109.7862]
[1672860478103,86.84,13.205,13.195,109.7862]
[1672860478291,56.84,13.205,13.195,109.7862]
[1672860478501,18.75984984,13.204,13.195,109.7862]
[1672860478723,56.85,13.203,13.195,109.7862]
[1672860479151,75.60984984,13.203,13.195,109.7862]
[1672860480087,75.60984984,13.203,13.189,114.728]
[1672860480301,23.46,13.2,13.189,114.728]
[1672860480507,30.0,13.198,13.189,0.3791]
[1672860480725,56.88,13.197,13.189,0.3791]
[1672860481043,75.63984984,13.197,13.189,0.3791]
[1672860481257,18.75984984,13.196,13.189,0.3791]
[1672860481454,56.89,13.195,13.189,0.3791]
[1672860481661,30.0,13.194,13.189,0.3791]
[1672860482184,18.75984984,13.193,13.189,0.3791]
[1672860482397,18.75984984,13.193,13.187,68.0290266]
[1672860482398,75.64984984,13.193,13.187,68.0290266]
[1672860482615,30.0,13.192,13.187,68.0290266]
[1672860482823,56.9,13.191,13.187,68.0290266]
[1672860483333,18.75984984,13.19,13.187,68.0290266]
[1672860483768,30.0,13.204,13.187,68.0290266]
[1672860483769,56.86,13.201,13.187,68.0290266]
[1672860483981,56.83,13.207,13.188,167.2351]
[1672860484184,56.83,13.207,13.188,302.4838836]
[1672860484601,56.83,13.209,13.189,51.7811836]
[1672860484818,56.83,13.209,13.19,56.91]
[1672860485350,56.83,13.209,13.189,56.91]
[1672860485565,30.0,13.208,13.189,56.91]
[1672860485758,56.83,13.207,13.189,56.91]
[1672860485970,26.15,13.2,13.188,280.7027]
[1672860488182,56.84,13.205,13.188,280.7027]
[1672860488507,56.83,13.207,13.189,30.0]
[1672860488710,56.83,13.207,13.19,56.91]
[1672860489121,75.58984984,13.207,13.19,56.91]
[1672860489331,75.58984984,13.207,13.191,21.7811836]
[1672860489542,56.83,13.207,13.192,30.0]
[1672860489759,56.83,13.209,13.193,56.89]
[1672860489974,56.83,13.209,13.194,30.0]
[1672860490716,56.83,13.209,13.194,145.896]
[1672860491549,56.83,13.209,13.195,21.7811836]
[1672860491762,56.83,13.209,13.196,56.88]
[1672860491981,20.0,13.208,13.195,56.89]
[1672860492503,20.0,13.208,13.196,30.0]
[1672860492819,26.03,13.21,13.197,56.88]
[1672860493010,76.83,13.209,13.197,56.88]
[1672860493220,76.83,13.209,13.196,30.0]
[1672860493632,56.83,13.209,13.196,30.0]
[1672860493847,75.54688233,13.214,13.198,30.0]
[1672860494057,56.8,13.214,13.198,30.0]
[1672860494279,18.74688233,13.215,13.199,56.87]
[1672860494496,30.0,13.213,13.201,30.0]
[1672860494703,56.8,13.214,13.202,109.6418]
[1672860495107,75.54688233,13.214,13.202,109.6418]
[1672860495533,75.54688233,13.214,13.2,115.026]
[1672860495534,56.8,13.214,13.197,56.88]
[1672860495748,25.89,13.21,13.198,21.7811836]
[1672860495962,56.83,13.209,13.193,175.238]
[1672860496368,20.0,13.208,13.196,30.0]
[1672860496579,56.83,13.207,13.196,30.0]
[1672860496788,20.0,13.208,13.196,30.0]
[1672860497225,20.0,13.208,13.195,196.5318]
[1672860497226,56.83,13.207,13.195,109.6418]
[1672860497434,56.83,13.207,13.196,30.0]
[1672860497644,20.0,13.208,13.196,30.0]
[1672860498082,25.89,13.21,13.196,30.0]
[1672860498386,18.74688233,13.213,13.198,30.0]
[1672860498698,26.03,13.21,13.199,171.7473]
[1672860498910,26.03,13.21,13.199,114.8773]
[1672860499305,26.03,13.21,13.195,109.6418]
[1672860499306,30.0,13.208,13.195,109.6418]
[1672860499519,20.0,13.207,13.195,109.6418]
[1672860499750,20.0,13.207,13.196,30.0]
[1672860500150,56.8,13.214,13.196,30.0]
[1672860500365,130.7873,13.219,13.196,30.0]
[1672860500366,56.79,13.217,13.198,30.0]
[1672860500581,18.74688233,13.216,13.199,56.87]
[1672860500780,56.8,13.215,13.2,30.0]
[1672860500997,56.79,13.217,13.201,167.4641]
[1672860501210,56.78,13.219,13.201,189.2452836]
[1672860501415,56.78,13.219,13.202,140.6983]
[1672860501639,56.78,13.219,13.203,56.85]
[1672860501851,56.78,13.219,13.203,78.6311836]
[1672860502055,38.09366113,13.229,13.203,78.6311836]
[1672860502056,56.76,13.224,13.204,41.7811836]
[1672860502268,30.0,13.228,13.206,30.0]
[1672860502594,56.75,13.227,13.207,56.83]
[1672860502787,56.74,13.229,13.207,78.6111836]
[1672860502999,75.48688233,13.229,13.207,56.83]
[1672860503420,30.0,13.228,13.208,30.0]
[1672860503630,30.0,13.228,13.209,56.83]
[1672860503631,76.75,13.227,13.209,56.83]
[1672860503842,30.0,13.226,13.21,30.0]
[1672860504155,56.76,13.225,13.21,30.0]
[1672860504360,56.76,13.225,13.212,30.0]
[1672860504571,56.74,13.229,13.213,76.81]
[1672860504787,56.7,13.238,13.213,76.81]
[1672860504998,30.0,13.237,13.214,30.0]
[1672860505207,23.45,13.23,13.215,56.8]
[1672860505526,23.45,13.23,13.214,30.0]
[1672860505527,56.74,13.229,13.214,30.0]
[1672860505855,30.0,13.228,13.212,30.0]
[1672860506049,76.75,13.227,13.211,172.8504]
[1672860506254,30.0,13.226,13.211,116.0304]
[1672860506464,56.76,13.225,13.211,116.0304]
[1672860507733,20.0,13.227,13.211,116.0304]
[1672860507734,56.75,13.226,13.211,116.0304]
[1672860508471,56.75,13.226,13.212,30.0]
[1672860508881,56.75,13.226,13.211,116.0304]
[1672860509109,30.0,13.225,13.211,116.0304]
[1672860509428,56.76,13.224,13.211,116.0304]
[1672860510368,56.75,13.226,13.212,30.0]
[1672860511101,56.75,13.226,13.212,56.81]
[1672860511310,56.75,13.226,13.213,30.0]
[1672860511733,56.75,13.226,13.213,51.7811836]
[1672860511937,56.75,13.226,13.213,21.7811836]
[1672860512133,56.75,13.226,13.212,30.0]
[1672860513220,56.75,13.226,13.211,116.0304]
[1672860513615,23.25,13.22,13.204,56.85]
[1672860513823,56.78,13.219,13.204,109.7715]
[1672860514136,56.78,13.219,13.205,30.0]
[1672860514556,18.74688233,13.218,13.205,30.0]
[1672860514878,56.79,13.217,13.205,30.0]
[1672860515088,56.78,13.219,13.205,30.0]
[1672860515507,20.0,13.218,13.205,30.0]
[1672860515714,56.79,13.217,13.205,30.0]
[1672860516040,30.0,13.216,13.204,109.7715]
[1672860516245,56.8,13.215,13.204,109.7715]
[1672860516456,75.54688233,13.215,13.204,109.7715]
[1672860516670,56.8,13.215,13.204,109.7715]
[1672860516883,18.74688233,13.214,13.204,109.7715]
[1672860517287,30.0,13.212,13.204,109.7715]
[1672860517502,20.0,13.218,13.204,109.7715]
[1672860517715,18.74688233,13.216,13.204,109.7715]
[1672860518155,56.8,13.215,13.204,109.7715]
[1672860519505,75.54688233,13.215,13.204,109.7715]
[1672860519715,18.74688233,13.215,13.204,109.7715]
[1672860520244,23.41,13.22,13.205,86.84]
[1672860520457,18.74688233,13.217,13.205,86.84]
[1672860520653,18.74688233,13.217,13.205,30.0]
[1672860521198,30.0,13.218,13.204,109.7715]
[1672860521383,20.0,13.217,13.204,109.7715]
[1672860521596,56.8,13.216,13.204,109.7715]
[1672860522251,20.0,13.217,13.204,109.7715]
[1672860522442,75.54688233,13.216,13.204,109.7715]
[1672860522660,30.0,13.215,13.204,109.7715]
[1672860522869,56.8,13.214,13.204,109.7715]
[1672860523194,75.54688233,13.214,13.204,109.7715]
[1672860524148,16.25,13.21,13.196,56.88]
[1672860524358,16.25,13.21,13.193,113.3051]
[1672860524359,56.83,13.209,13.193,113.3051]
[1672860524571,75.57688233,13.209,13.193,113.3051]
[1672860524763,30.0,13.207,13.193,113.3051]
[1672860524969,76.84,13.206,13.193,113.3051]
[1672860525395,95.58688233,13.206,13.193,113.3051]
[1672860525827,56.84,13.206,13.193,113.3051]
[1672860526024,30.0,13.216,13.196,30.0]
[1672860526235,30.0,13.216,13.197,56.88]
[1672860526440,18.74688233,13.214,13.197,56.88]
[1672860526653,56.81,13.213,13.198,30.0]
[1672860526872,56.81,13.213,13.199,56.87]
[1672860527084,56.81,13.213,13.2,30.0]
[1672860527298,56.81,13.213,13.2,146.9139]
[1672860528136,56.81,13.213,13.2,116.9139]
[1672860528980,16.32,13.21,13.2,116.9139]
[1672860529186,56.83,13.209,13.191,56.9]
[1672860529387,75.57688233,13.209,13.191,176.7252]
[1672860529598,18.74688233,13.208,13.191,176.7252]
[1672860529805,86.83,13.207,13.191,176.7252]
[1672860530005,56.83,13.207,13.196,30.0]
[1672860530214,75.57688233,13.207,13.196,30.0]
[1672860530439,18.74688233,13.207,13.191,176.7252]
[1672860530650,18.74688233,13.207,13.192,30.0]
[1672860530869,56.84,13.206,13.193,56.89]
[1672860531287,56.84,13.206,13.191,119.8252]
[1672860531288,18.74688233,13.205,13.191,119.8252]
[1672860531811,56.85,13.204,13.191,119.8252]
[1672860532022,30.0,13.203,13.191,119.8252]
[1672860532232,56.86,13.202,13.191,119.8252]
[1672860532442,75.07022483,13.202,13.191,119.8252]
[1672860532652,18.21022483,13.202,13.191,119.8252]
[1672860533729,16.23,13.2,13.188,56.92]
[1672860533925,16.23,13.2,13.176,30.0]
[1672860533926,30.0,13.199,13.183,167.8862]
[1672860534133,56.87,13.198,13.183,167.8862]
[1672860534347,75.08022483,13.198,13.183,167.8862]
[1672860534661,56.87,13.198,13.183,167.8862]
[1672860534877,56.87,13.199,13.184,30.0]
[1672860535295,56.87,13.199,13.183,167.8862]
[1672860535514,56.87,13.199,13.184,47.69207148]
[1672860536983,56.87,13.199,13.185,56.93]
[1672860537399,56.87,13.199,13.184,104.62207148]
[1672860537610,20.0,13.198,13.184,104.62207148]
[1672860538023,20.0,13.198,13.184,56.93]
[1672860538569,20.0,13.198,13.185,30.0]
[1672860538767,20.0,13.198,13.186,56.92]
[1672860538978,16.23,13.2,13.186,56.92]
[1672860539299,20.0,13.199,13.185,56.93]
[1672860539514,76.87,13.199,13.184,56.93]
[1672860540245,16.23,13.2,13.184,56.93]
[1672860540452,16.23,13.2,13.183,110.9462]
[1672860540453,56.84,13.205,13.188,170.5008]
[1672860540868,56.84,13.205,13.189,30.0]
[1672860541082,56.84,13.205,13.19,56.91]
[1672860541293,56.84,13.205,13.19,165.1853]
[1672860541617,56.84,13.205,13.19,218.74614827]
[1672860541618,30.0,13.204,13.19,218.74614827]
[1672860541926,30.0,13.204,13.19,165.1853]
[1672860542135,30.0,13.204,13.19,108.2753]
[1672860542553,30.0,13.204,13.189,56.91]
[1672860542751,16.23,13.2,13.187,68.0290266]
[1672860542962,86.87,13.199,13.187,68.0290266]
[1672860546025,56.87,13.199,13.187,68.0290266]
[1672860546465,56.87,13.199,13.187,53.0290266]
[1672860547497,20.0,13.198,13.187,53.0290266]
[1672860547706,20.0,13.197,13.187,53.0290266]
[1672860548130,56.88,13.196,13.187,53.0290266]
[1672860548343,56.87,13.199,13.187,53.0290266]
[1672860548671,30.0,13.198,13.187,53.0290266]
[1672860548992,56.88,13.197,13.187,53.0290266]
[1672860549923,30.0,13.196,13.187,53.0290266]
[1672860550872,30.0,13.194,13.187,53.0290266]
[1672860551089,56.89,13.193,13.187,53.0290266]
[1672860551276,30.0,13.194,13.187,53.0290266]
[1672860551487,72.61747188,13.184,13.168,57.0]
[1672860551699,30.0,13.182,13.179,76.1158589]
[1672860553179,56.95,13.181,13.179,76.1158589]
[1672860553799,56.94,13.183,13.179,76.1158589]
[1672860554759,76.1158589,13.178,13.13,16.42]
[1672860554973,76.1158589,13.178,13.129,76.1158589]
[1672860554974,81.58,13.16,13.153,7.0257134]
[1672860555185,57.04,13.159,13.153,7.0257134]
[1672860555376,123.8019497,13.159,13.153,7.0257134]
[1672860555585,123.8019497,13.159,13.151,507.75886845]
[1672860555802,7.0257134,13.153,13.151,357.75886845]
[1672860556023,55.02715137,13.15,13.134,30.4375]
[1672860556218,12.05766507,13.148,13.134,30.4375]
[1672860556442,57.09,13.147,13.134,30.4375]
[1672860556634,105.43481651,13.147,13.137,0.0090266]
[1672860556848,60.23746482,13.137,13.134,30.4375]
[1672860557066,57.14,13.136,13.134,30.4375]
[1672860557274,57.13,13.139,13.134,30.4375]
[1672860557606,57.13,13.139,13.134,0.0075]
[1672860557792,30.0,13.138,13.134,0.0075]
[1672860558001,30.0,13.138,13.129,0.0119317]
[1672860558002,57.14,13.137,13.129,0.0119317]
[1672860558319,57.14,13.137,13.099,57.3]
[1672860558320,47.09692072,13.129,13.099,57.3]
[1672860558529,47.09692072,13.129,13.094,138.03682712]
[1672860558530,57.18,13.128,13.123,0.0064699]
[1672860558743,30.0,13.127,13.123,0.0064699]
[1672860558951,57.18,13.126,13.123,0.0064699]
[1672860559171,10.20015807,13.125,13.123,0.0064699]
[1672860559378,10.20015807,13.125,13.098,30.0]
[1672860559379,30.0,13.123,13.104,44.2864699]
[1672860559591,30.0,13.123,13.104,135.7487323]
[1672860559592,16.28,13.12,13.104,135.7487323]
[1672860559798,16.28,13.12,13.105,30.0]
[1672860559996,57.18,13.126,13.106,57.27]
[1672860560212,16.3,13.13,13.106,217.63588878]
[1672860560452,16.3,13.13,13.107,43.08588878]
[1672860560643,57.13,13.139,13.109,30.0]
[1672860560963,16.23,13.14,13.11,73.57]
[1672860561175,16.23,13.14,13.111,30.0]
[1672860561494,57.08,13.149,13.112,77.25]
[1672860561681,16.23,13.15,13.12,16.32]
[1672860561887,16.23,13.15,13.121,194.49]
[1672860562108,57.04,13.159,13.121,241.38922211]
[1672860562434,57.04,13.159,13.122,99.77292668]
[1672860562623,56.878239,13.159,13.13,16.32]
[1672860562836,16.37,13.16,13.131,77.16]
[1672860563070,16.37,13.16,13.132,118.0483]
[1672860563383,16.37,13.16,13.133,77.15]
[1672860563696,16.37,13.16,13.134,30.0]
[1672860563889,81.76,13.16,13.135,57.15]
[1672860564309,16.28,13.16,13.135,111.85268845]
[1672860564526,16.28,13.16,13.136,116.55737557]
[1672860564733,81.56,13.16,13.137,87.14]
[1672860564938,81.56,13.16,13.137,141.84268845]
[1672860565150,81.56,13.16,13.138,54.70268845]
[1672860565359,57.0,13.169,13.139,57.13]
[1672860565590,16.17,13.17,13.141,30.0]
[1672860565801,16.17,13.17,13.142,57.12]
[1672860565994,16.17,13.17,13.143,20.0]
[1672860566204,16.17,13.17,13.144,57.11]
[1672860566424,81.56,13.17,13.145,20.0]
[1672860566634,57.0,13.169,13.147,30.0]
[1672860566842,57.0,13.169,13.148,57.09]
[1672860567052,57.0,13.169,13.148,353.3521033]
[1672860567685,57.0,13.169,13.149,30.0]
[1672860568003,57.0,13.169,13.15,57.08]
[1672860568216,16.28,13.17,13.15,57.08]
[1672860568524,56.95,13.179,13.151,30.0]
[1672860568741,56.95,13.179,13.152,57.07]
[1672860568950,81.6,13.17,13.152,57.07]
[1672860569267,16.17,13.17,13.152,296.2621033]
[1672860569457,57.0,13.169,13.153,57.07]
[1672860569667,16.17,13.17,13.154,30.0]
[1672860569892,16.17,13.17,13.155,57.06]
[1672860570214,56.97,13.175,13.155,57.06]
[1672860570526,56.97,13.175,13.156,30.0]
[1672860570725,56.95,13.179,13.157,57.05]
[1672860571157,16.29,13.17,13.157,353.3121033]
[1672860571358,16.29,13.17,13.157,296.2621033]
[1672860571359,57.0,13.169,13.157,296.2621033]
[1672860571569,57.0,13.169,13.158,30.0]
[1672860572297,16.29,13.17,13.158,29.92922692]
[1672860572503,20.0,13.169,13.158,29.92922692]
[1672860572835,77.0,13.169,13.158,29.92922692]
[1672860573025,77.0,13.169,13.155,109.9844]
[1672860573246,77.0,13.169,13.158,296.2621033]
[1672860575046,30.0,13.167,13.158,296.2621033]
[1672860575248,57.01,13.166,13.158,296.2621033]
[1672860575460,57.0,13.168,13.158,296.2621033]
[1672860575867,18.2103928,13.165,13.158,296.2621033]
[1672860576072,57.02,13.164,13.158,296.2621033]
[1672860576616,18.2103928,13.163,13.158,296.2621033]
[1672860576829,57.03,13.162,13.158,296.2621033]
[1672860577870,75.2403928,13.162,13.158,296.2621033]
[1672860578089,75.2403928,13.162,13.158,172.7741848]
[1672860578090,121.19162099,13.162,13.158,172.7741848]
[1672860578400,35.82232447,13.161,13.134,203.7201]
[1672860578617,81.73,13.15,13.134,78.78529772]
[1672860578828,57.08,13.149,13.134,78.78529772]
[1672860579021,75.2903928,13.149,13.134,78.78529772]
[1672860579232,18.2103928,13.148,13.134,78.78529772]
[1672860579443,20.0,13.147,13.134,78.78529772]
[1672860579869,57.08,13.149,13.134,78.78529772]
[1672860580290,16.32,13.14,13.119,30.0]
[1672860580492,81.67,13.14,13.119,30.0]
[1672860580709,16.37,13.14,13.119,30.0]
[1672860580913,57.09,13.147,13.126,57.18]
[1672860581127,57.08,13.149,13.13,57.17]
[1672860581548,16.37,13.15,13.131,30.0]
[1672860581763,16.37,13.15,13.132,57.16]
[1672860581978,75.29957048,13.149,13.132,57.16]
[1672860582383,57.08,13.149,13.133,30.0]
[1672860583219,16.37,13.15,13.133,30.0]
[1672860583437,16.37,13.15,13.135,30.0]
[1672860583642,20.0,13.149,13.135,30.0]
[1672860584063,77.08,13.149,13.133,30.0]
[1672860584292,95.29957048,13.149,13.133,30.0]
[1672860584486,77.08,13.149,13.133,30.0]
[1672860584925,95.29957048,13.149,13.133,30.0]
[1672860585133,77.08,13.149,13.133,30.0]
[1672860586594,77.08,13.149,13.132,57.16]
[1672860586810,77.08,13.149,13.131,116.5538]
[1672860587028,18.21957048,13.148,13.131,116.5538]
[1672860587221,57.09,13.147,13.131,116.5538]
[1672860587456,20.0,13.146,13.132,30.0]
[1672860587749,16.44,13.15,13.133,51.91315379]
[1672860587959,77.08,13.149,13.133,51.91315379]
[1672860588175,77.08,13.149,13.132,30.0]
[1672860588395,16.25,13.14,13.13,57.17]
[1672860588623,16.25,13.14,13.129,30.3759949]
[1672860588624,81.53,13.14,13.129,30.3759949]
[1672860588927,57.13,13.139,13.129,30.3759949]
[1672860589116,16.23,13.14,13.129,30.3759949]
[1672860590176,20.0,13.149,13.129,30.3759949]
[1672860590177,57.08,13.149,13.129,30.3759949]
[1672860590371,57.08,13.149,13.131,30.0]
[1672860591744,57.08,13.149,13.132,57.16]
[1672860591955,20.0,13.148,13.132,57.16]
[1672860592165,20.0,13.148,13.133,30.0]
[1672860592371,20.0,13.148,13.134,57.15]
[1672860592792,16.44,13.15,13.134,57.15]
[1672860593020,16.29,13.14,13.132,57.16]
[1672860593228,16.29,13.14,13.131,30.0]